Cogmind - Beta 13 @@@ ROGUE MODE // 2024.05.02 @ 00:21:08 Player: BionicBot Result: Destroyed by 8R-AWN with 8R-AWN's Boregun Performance ------------- Evolutions (0) 0 Regions Visited (3) 600 Robots Destroyed (7) 35 Value Destroyed (143) 143 Prototype IDs (0) 0 Alien Tech Used (0) 0 Bonus (0) 0 TOTAL SCORE: 778 Bonus ------- None Cogmind --------- Core Integrity 0/250 Matter 295/300 Energy 140/160 System Corruption 14% Temperature Cool (2) Movement Walking (120) Location -10/Exiles Parts ------- > --- POWER (1) -------- Light Nuclear Core > --- PROPULSION (2) --- Aluminum Leg Aluminum Leg > --- UTILITY (2) ------ Small Storage Unit Improved Targeting Computer > --- WEAPON (2) ------- Particle Gun Spread Laser > --- INVENTORY (8) ---- Experimental Sensor Array Signal Interpreter Improved Targeting Computer Field Recycling Unit (0) Peak State ------------ > --- POWER ------------ Light Nuclear Core > --- PROPULSION ------- Aluminum Leg Aluminum Leg > --- UTILITY ---------- Small Storage Unit Improved Targeting Computer > --- WEAPON ----------- Particle Gun Spread Laser > --- INVENTORY -------- Experimental Sensor Array Signal Interpreter Improved Targeting Computer Field Recycling Unit [Rating: 13] Favorites ----------- Power Light Ion Engine Engine Light Ion Engine Power Core Light Nuclear Core Propulsion Aluminum Leg Leg Aluminum Leg Utility Small Storage Unit Device Sensor Array Storage Small Storage Unit Processor Improved Targeting Computer Weapon Assault Rifle Energy Gun Spread Laser Ballistic Gun Assault Rifle Launcher Grenade Launcher Build | -11 -10 -10 -10 ------- Run | Yrd Mat Min Exi Slots Evolved . | . . . . Power . | . . . . Propulsion . | . . . . Utility . | . . . . Weapon . | . . . . Parts Attached 18 | 6 3 9 . Power 3 | 1 1 1 . Engine 2 | 1 1 . . Core 1 | . . 1 . Reactor . | . . . . Propulsion 4 | 2 . 2 . Treads . | . . . . Leg 4 | 2 . 2 . Wheel . | . . . . Hover . | . . . . Flight . | . . . . Utility 3 | 1 1 1 . Device 1 | . 1 . . Storage 1 | 1 . . . Processor 1 | . . 1 . Hackware . | . . . . Protection . | . . . . Artifact . | . . . . Weapon 8 | 2 1 5 . Energy Gun 5 | 1 1 3 . Energy Cannon . | . . . . Ballistic Gun 1 | 1 . . . Ballistic Cannon . | . . . . Launcher 2 | . . 2 . Special Weapon . | . . . . Impact Weapon . | . . . . Slashing Weapon . | . . . . Piercing Weapon . | . . . . Special Melee Weapon . | . . . . Unidentified Prototypes . | . . . . Parts Lost 7 | . . 7 . Power 1 | . . 1 . Propulsion 2 | . . 2 . Utility . | . . . . Weapon 4 | . . 4 . Highest Loss Streak 7 | . . 7 . To Critical Strikes . | . . . . Average Slot Usage (%) 92 | . 97 88 100 Engine 10 | . 14 8 . Core 2 | . . 2 14 Leg 25 | . 28 23 28 Device 9 | . 11 9 . Storage 14 | . 14 14 14 Processor 1 | . . 2 14 Energy Gun 15 | . 14 15 28 Ballistic Gun 10 | . 14 9 . Naked Turns . | . . . . Heaviest Build 16 | 12 14 16 16 Greatest Support 20 | 20 20 20 20 Greatest Overweight (x) 4 | 2 . 4 . Average Overweight (x) . | . . . . Largest Inventory Capacity 8 | 8 8 8 8 Average Capacity 7 | 7 8 8 8 Most Carried 8 | . 6 8 4 Average Carried 4 | . 1 6 4 Final Capacity 8 | 8 8 8 8 Final Carried 6 | . 6 4 4 Class Distribution -------------------- 86% | Mutant 13% | Scavenger-Mutant Dominant Class ---------------- Mutant | -10/Materials Mutant | -10/Mines Scavenger-Mutant | -10/Exiles Resources | -11 -10 -10 -10 ----------- Run | Yrd Mat Min Exi Matter Collected 443 | 259 78 106 . Remotely . | . . . . Salvage Created 220 | . 191 29 . Parts 13 | . 13 . . Haulers Intercepted . | . . . . Recyclers Shooed . | . . . . Parts Field Recycled . | . . . . Retrieved Matter . | . . . . Parts Self-Destructed . | . . . . Prevented . | . . . . Kills | -11 -10 -10 -10 ------- Run | Yrd Mat Min Exi Combat Hostiles Destroyed 9 | . 5 4 . Guns 6 | . 5 1 . AOE 3 | . . 3 . Classes Destroyed 4 | . 3 1 . Watcher 2 | . 2 . . Swarmer 3 | . 3 . . Grunt 2 | . 2 . . Assembled 4 | . . 4 . Best Kill Streak 6 | . 6 3 . Combat Bots Only 5 | . 5 3 . Max Kills in Single Turn 2 | . 1 2 . Gunslinging . | . . . . Exploded 2 | . . 2 . Melee . | . . . . Uniques/NPCs Destroyed . | . . . . Combat | -11 -10 -10 -10 -------- Run | Yrd Mat Min Exi Hostile Shots Fired 73 | . 46 26 1 Missed 16 | . 12 4 . Damage Taken 957 | . 282 662 13 Core 252 | . 82 157 13 Absorbed by Shields . | . . . . Core Remaining (%) 100 | 100 . . . Volleys Fired 24 | . 19 5 . Largest 2 | . 2 2 . Hottest 98 | . 70 98 . Shots Fired 47 | . 38 8 1 Gun 44 | . 38 5 1 Cannon . | . . . . Launcher 3 | . . 3 . Special . | . . . . Kinetic 20 | . 19 1 . Thermal 24 | . 19 4 1 Explosive 3 | . . 3 . Electromagnetic . | . . . . Robot Hit Streak 7 | . 4 7 4 Robot Miss Streak 7 | . 7 3 2 Penetration Max . | . . . . Secondary Targets 2 | . 2 . . Max Gunslinging Chain 1 | . 1 . . Shots Hit Robots 27 | . 19 7 1 Core Hits 25 | . 10 15 . Critical Kills . | . . . . Critical Parts Destroyed . | . . . . Critical Strikes 1 | . 1 . . Burn 1 | . 1 . . Melee Attacks . | . . . . Impact . | . . . . Slashing . | . . . . Piercing . | . . . . Sneak Attacks . | . . . . Combat Hostiles . | . . . . Follow-up Attacks . | . . . . Damage Inflicted 550 | . 247 303 . Guns 302 | . 247 55 . Cannons . | . . . . Explosions 229 | . . 229 . Melee . | . . . . Ramming 19 | . . 19 . Kinetic 108 | . 96 12 . Thermal 194 | . 151 43 . Explosive 229 | . . 229 . Electromagnetic . | . . . . Impact . | . . . . Slashing . | . . . . Piercing . | . . . . Highest Corruption 14 | . . 14 14 Average Corruption 12 | . . 12 14 Corruption Purged . | . . . . Corruption Blocked . | . . . . Effects 12 | . . 9 3 Message Errors 1 | . . 1 . Matter Fused 1 | . . . 1 Heat Flow Errors 2 | . . 2 . Energy Discharges 2 | . . 2 . Parts Rejected 2 | . . 2 . Data Loss (minor) 2 | . . 1 1 Misfires 2 | . . 1 1 Overload Shots . | . . . . Overflow Damage 1 | . . 1 . Projectiles . | . . . . Explosions 1 | . . 1 . Melee . | . . . . Knockbacks . | . . . . Impact . | . . . . Kinetic . | . . . . Secondary . | . . . . Self-Inflicted Damage 77 | . . 77 . Shots 2 | . . 2 . Rammed 3 | . . 3 . Targets Rammed 7 | . . 7 . Kicked 4 | . . 4 . Crushed . | . . . . Highest Temperature 169 | . 156 169 . Average Temperature 65 | . 71 53 . Received Heat Transfer 204 | . 12 192 . Siege Activations . | . . . . Robots Corrupted . | . . . . Combat Hostiles . | . . . . Parts Fried . | . . . . Impact Corruptions . | . . . . Robots Melted . | . . . . Combat Hostiles . | . . . . Parts Melted . | . . . . Heat Transferred 573 | . 518 55 . Parts Sabotaged . | . . . . Parts Stolen . | . . . . Parts Stripped . | . . . . Power Chain Reactions . | . . . . Alert | -11 -10 -10 -10 ------- Run | Yrd Mat Min Exi Peak Influence 180 | . 180 15 . Initial . | . . . . Average 57 | . 137 6 . Maximum Alert Level . | . . . . Low Security (%) 100 | 100 100 100 . Level 1 . | . . . . Level 2 . | . . . . Level 3 . | . . . . Level 4 . | . . . . Level 5 . | . . . . High Security . | . . . . Max Security . | . . . . Squads Dispatched 1 | . 1 . . Investigation . | . . . . Extermination . | . . . . Reinforcement 1 | . 1 . . Assault . | . . . . Garrison . | . . . . Intercept . | . . . . Searches Triggered . | . . . . Construction Impeded . | . . . . Haulers Reinforced . | . . . . Active Scanning Responses . | . . . . Cargo Convoy Interrupts . | . . . . Stealth | -11 -10 -10 -10 --------- Run | Yrd Mat Min Exi Distress Signals . | . . . . Communications Jammed . | . . . . Distress Signals . | . . . . Times Spotted 33 | . 7 25 1 Peak Tracking Total 16 | . 4 16 9 Tactical Retreats 3 | . . 3 . Traps | -11 -10 -10 -10 ------- Run | Yrd Mat Min Exi Traps Triggered . | . . . . Indirectly . | . . . . Trap Hack Attempts . | . . . . Triggered . | . . . . Disarmed . | . . . . Reprogrammed . | . . . . Reused . | . . . . Traps Extracted . | . . . . Installed . | . . . . Triggered 1 | . . 1 . Machines | -11 -10 -10 -10 ---------- Run | Yrd Mat Min Exi Machines Disabled . | . . . . Max in Single Turn . | . . . . Machines Repaired . | . . . . Machines Dismantled . | . . . . Machines Sabotaged . | . . . . Overloaded Fab Kills . | . . . . Hacking | -11 -10 -10 -10 --------- Run | Yrd Mat Min Exi Machines Accessed 1 | . 1 . . Terminals 1 | . 1 . . Fabricators . | . . . . Repair Stations . | . . . . Recycling Units . | . . . . Scanalyzers . | . . . . Garrison Access . | . . . . Total Hacks 5 | . 5 . . Successful 3 | . 3 . . Failed 2 | . 2 . . Catastrophic . | . . . . Database Lockouts . | . . . . Manual . | . . . . Terminals 5 | . 5 . . Fabricators . | . . . . Repair Stations . | . . . . Recycling Units . | . . . . Scanalyzers . | . . . . Garrison Access . | . . . . Terminal Hacks 3 | . 3 . . Branch Access Points 1 | . 1 . . Locate Traps 1 | . 1 . . Hauler Manifests 1 | . 1 . . Fabricator Hacks . | . . . . Repair Station Hacks . | . . . . Recycling Unit Hacks . | . . . . Scanalyzer . | . . . . Garrison Access Hacks . | . . . . Unauthorized Hacks . | . . . . Terminals . | . . . . Fabricators . | . . . . Repair Stations . | . . . . Recycling Units . | . . . . Scanalyzers . | . . . . Garrison Access . | . . . . Data Cores Recovered . | . . . . Used . | . . . . Hacking Detections 1 | . 1 . . Full Trace Events . | . . . . Feedback Events . | . . . . Feedback Blocked . | . . . . Robot Schematics Acquired . | . . . . Robots Built . | . . . . Authchips . | . . . . Time . | . . . . Total Robot Build Rating . | . . . . Part Schematics Acquired . | . . . . Parts Built . | . . . . Authchips . | . . . . Time . | . . . . Total Part Build Rating . | . . . . Parts Repaired . | . . . . Time . | . . . . Parts Recycled . | . . . . Recycled Matter . | . . . . Retrieved Matter . | . . . . Retrieved Components . | . . . . Parts Scanalyzed . | . . . . Part Schematics Acquired . | . . . . Parts Damaged . | . . . . Bothacking | -11 -10 -10 -10 ------------ Run | Yrd Mat Min Exi Used RIF Installer . | . . . . Robots Hacked . | . . . . Non-combat . | . . . . Combat . | . . . . Robot Hacks Applied . | . . . . Relay Couplers Released . | . . . . Fabnet Peak Effective % . | . . . . Robots Rewired . | . . . . Allies Hacked . | . . . . Hacks Repelled . | . . . . Allies | -11 -10 -10 -10 -------- Run | Yrd Mat Min Exi Total Allies . | . . . . Largest Group . | . . . . Highest-Rated Group . | . . . . Highest-Rated Ally . | . . . . Total Orders . | . . . . Ally Attacks . | . . . . Total Damage . | . . . . Kills . | . . . . Allies Corrupted . | . . . . Allies Melted . | . . . . Intel | -11 -10 -10 -10 ------- Run | Yrd Mat Min Exi Robot Analysis Total . | . . . . Derelict Logs Recovered 2 | . . 2 . Drone Launches . | . . . . Drone Recoveries . | . . . . Exploration | -11 -10 -10 -10 ------------- Run | Yrd Mat Min Exi Turns Passed 1109 | 52 421 596 40 Spaces Moved 723 | 39 201 449 34 Core 46 | 8 . 38 . Treads . | . . . . Legs 677 | 31 201 411 34 Wheels . | . . . . Hover . | . . . . Flight . | . . . . Fastest Speed 50 | 50 120 100 120 Average Speed 122 | 112 120 124 120 Slowest Speed 250 | 150 120 250 120 Overloaded Moves . | . . . . Propulsion Burnouts . | . . . . Robots Hopped . | . . . . Cave-ins Triggered . | . . . . Exploration Rate (%) 34 | 3 34 89 11 Regions Visited 3 Branch Regions 2 Pre-discovered Areas 2 | . . 2 . Known Exits Taken 2 | . 1 1 . Unknown Exits Taken 1 | 1 . . . Scrap Searched 1 | . . 1 . Spaces Dug . | . . . . Terrain Destroyed 37 | . . 37 . Melee . | . . . . Projectile . | . . . . AOE 37 | . . 37 . Terrain Rammed . | . . . . Walls Destroyed . | . . . . Machines Disabled . | . . . . Actions | -11 -10 -10 -10 --------- Run | Yrd Mat Min Exi Total 898 | 44 342 478 34 Wait 119 | . 112 7 . Move 720 | 38 200 448 34 Hop . | . . . . Pick Up 8 | . 6 2 . Fast Attach 12 | 6 1 5 . Attach 4 | . . 4 . Detach . | . . . . Swap 2 | . 2 . . Drop 2 | . 2 . . Fire 24 | . 19 5 . Melee . | . . . . Ram 3 | . . 3 . Kick 4 | . . 4 . Crush . | . . . . Escape Stasis . | . . . . Rewire . | . . . . Trap . | . . . . Miscellaneous . | . . . . Route ------- -11/Scrapyard -10/Materials -10/Mines (discovered 2 exits: [*Mat] / *Exi) -10/Exiles History --------- Turn | Location | Event 18 | -11/Scrapyard | Discovered new exit (range 14) 53 | -11/Scrapyard | Entered Materials 133 | -10/Materials | Discovered new exit (range 16) 313 | -10/Materials | Build established: Mutant 368 | -10/Materials | Identified exit to Mines 474 | -10/Materials | Entered Mines 546 | -10/Mines | Received a Rocket Launcher from a helpful Derelict 589 | -10/Mines | Learned location of Storage (-7) 640 | -10/Mines | Found a damaged Exp. Sensor Array with a note attached 643 | -10/Mines | Found Prototype Device 772 | -10/Mines | Discovered new exit (range 7) 828 | -10/Mines | Assembled infested the area 843 | -10/Mines | Identified exit to Exiles 858 | -10/Mines | Core integrity fell below 50% 888 | -10/Mines | System corruption reached 10% 889 | -10/Mines | Core integrity fell below 20% 919 | -10/Mines | Lost 7 parts (1p2n4w) 1063 | -10/Mines | Deemed a non-threat by the Exiles lab entrance 1070 | -10/Mines | Entered Exiles 1099 | -10/Exiles | Met 8R-AWN 1110 | -10/Exiles | Attacked by the Exiles 1110 | -10/Exiles | Destroyed by 8R-AWN with 8R-AWN's Boregun Last Messages --------------- 01009_ Found Med. Matter Pod. 01009_ Found Com. Wheel. 01009_ Found 12 Matter. 01010_ System corrupted: Component data lost. 01010_ Acquired 2 matter. 01030_ System corrupted: Energy discharge (-33). 01056_ System corrupted: Energy discharge (-46). 01063_ "No threat detected, you may enter." LOCATION=EXILES GOAL=ESCAPE 01075_ System corrupted: Component data lost. 01092_ System corrupted: Matter fused (-5). 8R-AWN: Oh you look... interesting. The Exiles will probably want to check you out. Keep your grabby things to yourself, though. I've got my sensors on you. 01110_ System corrupted: FCS attempts to trigger Spread Laser. 01110_ System corrupted: Spread Laser misfires. 01110_ EXILES: Hostile robot within lab perimeter. Defensive protocols time, folks! 01110_ Penetrated by HV Slug. Map ----- +----------------------------------------------------+ | ?????????????????????????????????????????????????? | | ?????????????????????????????????????????????????? | | ?????????????????????????????????????????????????? | | ?????????????????????????????????????????????????? | | ?????????????????????????????????????????????????? | | ?????????????????????????????????????????????????? | | ?????????????????????????????????????????????????? | | ?????????????????????????????????????????????????? | | ?????????????????????????????????????????????????? | | ?????????????????????????????????????????????????? | | ?????????????????????????????????????????????????? | | ?????????????????????????????????????????????????? | | ?????????????????????????????????????????????????? | | ?????????????????????????????????????????????????? | | ??????????????????????????????????????????????? ? | | ??????????????????????????????????????????????# | | ????????????????????????????????????????????## | | ????????????????????????????????????????????# | | ????????????????????????#####???????????????# | | ???????????????????????##" #??????????????## | | ???????????????????????#" g #?????????????## # | | ??????????????????????##" ##????????????# # | | ????????????????????### ###????????### #? | | ????????????????????# ########## #? | | ???????????????????## #""""## #?? | | ???????????????????# @ * ##? | | ???????????? ## * #? | | ?????????? #?## ## | | ??????????? ""??#"""""#### # | | ??????????? #"""???#######??#### * | | ???????????? ?###????????????????##### | | ???????????? ??????????????????????????### | | ???????????? ??????????????????????????????### | | ??????????????????????????????????????????????### | | ???????????????????????????????????????????????#" | | ???????????????????????????????????????????????### | | ?????????????????????????????????????????????????? | | ?????????????????????????????????????????????????? | | ?????????????????????????????????????????????????? | | ?????????????????????????????????????????????????? | | ?????????????????????????????????????????????????? | | ?????????????????????????????????????????????????? | | ?????????????????????????????????????????????????? | | ?????????????????????????????????????????????????? | | ?????????????????????????????????????????????????? | | ?????????????????????????????????????????????????? | | ?????????????????????????????????????????????????? | | ?????????????????????????????????????????????????? | | ?????????????????????????????????????????????????? | | ?????????????????????????????????????????????????? | +----------------------------------------------------+ Best States ------------- Heat Dissipation 25 Energy Generation 14 Energy Capacity 160 Matter Stores 300 Matter Capacity 300 Sight Range 16 Robot Scan Range 14 Terrain Scan Density 10 Evasion (%) 55 Targeting Accuracy 6 Item Schematics ----------------- None Robot Schematics ------------------ None Fabricated ------------ Nothing Alien Tech Used ----------------- None Achievements -------------- None Challenges ------------ None Game ------ Seed PowerTripodShockpuncher Manual? 0 Play Time 00:11:52 Cumulative 24.2 hours Start 2024.05.02 @ 00:04:06 End 2024.05.02 @ 00:21:08 Sessions 1 Manual Loads 0 Difficulty Rogue Special Mode None Game No. 25 Rogue 25 Adventurer 0 Explorer 0 Win Type - Total 0 Types 0/0/0/0/0/0/0/0/0 Lore% 6 Gallery% 23 Achievement% 18 Wizard Run 0 Options --------- Layout 0 ASCII 0 Keyboard 1 Movement Numpad Keybinds 0 Fullscreen 2 Font 18/SmallcapsGlow Map View 76x50 Zoom Use 0% Tactical HUD 1 Map Filters NONE Filters NONE Steam 1 RUN: c9315f60-7875-4519-a542-99df18e01ace